{"text_format":"1","workbook":"xlsx","n_sheets":1,"sheets":["Two Dice"],"not_rendered":{"charts":1,"images":0,"macros":1,"external_links":0,"defined_names":0,"comments":0,"pivot_tables":0},"unopened":[],"bounds":{"document_bytes":16777216,"sheet_cells":100000,"rows_first":2000,"rows_last":500,"rows_between":2000,"halvings":0,"cell_chars":16384,"cell_head_chars":4096},"cells_cut":0,"cells_raw":0,"read":"whole","date_system":"1900"}

{"sheet":"Two Dice","index":0,"n_rows":1007,"n_cols":1002,"rows_kept":1007,"cut":false,"hidden":false,"merged":[[5,9,5,16],[6,9,6,16],[7,9,7,16]]}
[null,"Person",1,2,3,4,5,6,7,8,9,10,11,12,13,14,15,16,17,18,19,20,21,22,23,24,25,26,27,28,29,30,31,32,33,34,35,36,37,38,39,40,41,42,43,44,45,46,47,48,49,50,51,52,53,54,55,56,57,58,59,60,61,62,63,64,65,66,67,68,69,70,71,72,73,74,75,76,77,78,79,80,81,82,83,84,85,86,87,88,89,90,91,92,93,94,95,96,97,98,99,100,101,102,103,104,105,106,107,108,109,110,111,112,113,114,115,116,117,118,119,120,121,122,123,124,125,126,127,128,129,130,131,132,133,134,135,136,137,138,139,140,141,142,143,144,145,146,147,148,149,150,151,152,153,154,155,156,157,158,159,160,161,162,163,164,165,166,167,168,169,170,171,172,173,174,175,176,177,178,179,180,181,182,183,184,185,186,187,188,189,190,191,192,193,194,195,196,197,198,199,200,201,202,203,204,205,206,207,208,209,210,211,212,213,214,215,216,217,218,219,220,221,222,223,224,225,226,227,228,229,230,231,232,233,234,235,236,237,238,239,240,241,242,243,244,245,246,247,248,249,250,251,252,253,254,255,256,257,258,259,260,261,262,263,264,265,266,267,268,269,270,271,272,273,274,275,276,277,278,279,280,281,282,283,284,285,286,287,288,289,290,291,292,293,294,295,296,297,298,299,300,301,302,303,304,305,306,307,308,309,310,311,312,313,314,315,316,317,318,319,320,321,322,323,324,325,326,327,328,329,330,331,332,333,334,335,336,337,338,339,340,341,342,343,344,345,346,347,348,349,350,351,352,353,354,355,356,357,358,359,360,361,362,363,364,365,366,367,368,369,370,371,372,373,374,375,376,377,378,379,380,381,382,383,384,385,386,387,388,389,390,391,392,393,394,395,396,397,398,399,400,401,402,403,404,405,406,407,408,409,410,411,412,413,414,415,416,417,418,419,420,421,422,423,424,425,426,427,428,429,430,431,432,433,434,435,436,437,438,439,440,441,442,443,444,445,446,447,448,449,450,451,452,453,454,455,456,457,458,459,460,461,462,463,464,465,466,467,468,469,470,471,472,473,474,475,476,477,478,479,480,481,482,483,484,485,486,487,488,489,490,491,492,493,494,495,496,497,498,499,500,501,502,503,504,505,506,507,508,509,510,511,512,513,514,515,516,517,518,519,520,521,522,523,524,525,526,527,528,529,530,531,532,533,534,535,536,537,538,539,540,541,542,543,544,545,546,547,548,549,550,551,552,553,554,555,556,557,558,559,560,561,562,563,564,565,566,567,568,569,570,571,572,573,574,575,576,577,578,579,580,581,582,583,584,585,586,587,588,589,590,591,592,593,594,595,596,597,598,599,600,601,602,603,604,605,606,607,608,609,610,611,612,613,614,615,616,617,618,619,620,621,622,623,624,625,626,627,628,629,630,631,632,633,634,635,636,637,638,639,640,641,642,643,644,645,646,647,648,649,650,651,652,653,654,655,656,657,658,659,660,661,662,663,664,665,666,667,668,669,670,671,672,673,674,675,676,677,678,679,680,681,682,683,684,685,686,687,688,689,690,691,692,693,694,695,696,697,698,699,700,701,702,703,704,705,706,707,708,709,710,711,712,713,714,715,716,717,718,719,720,721,722,723,724,725,726,727,728,729,730,731,732,733,734,735,736,737,738,739,740,741,742,743,744,745,746,747,748,749,750,751,752,753,754,755,756,757,758,759,760,761,762,763,764,765,766,767,768,769,770,771,772,773,774,775,776,777,778,779,780,781,782,783,784,785,786,787,788,789,790,791,792,793,794,795,796,797,798,799,800,801,802,803,804,805,806,807,808,809,810,811,812,813,814,815,816,817,818,819,820,821,822,823,824,825,826,827,828,829,830,831,832,833,834,835,836,837,838,839,840,841,842,843,844,845,846,847,848,849,850,851,852,853,854,855,856,857,858,859,860,861,862,863,864,865,866,867,868,869,870,871,872,873,874,875,876,877,878,879,880,881,882,883,884,885,886,887,888,889,890,891,892,893,894,895,896,897,898,899,900,901,902,903,904,905,906,907,908,909,910,911,912,913,914,915,916,917,918,919,920,921,922,923,924,925,926,927,928,929,930,931,932,933,934,935,936,937,938,939,940,941,942,943,944,945,946,947,948,949,950,951,952,953,954,955,956,957,958,959,960,961,962,963,964,965,966,967,968,969,970,971,972,973,974,975,976,977,978,979,980,981,982,983,984,985,986,987,988,989,990,991,992,993,994,995,996,997,998,999,1000]
[null,"status",{"$f":"IF(RANDBETWEEN(1,100)<=12,\"Flu\",\"No Flu\")","v":"No Flu"},{"$f":"IF(RANDBETWEEN(1,100)<=12,\"Flu\",\"No Flu\")","v":"No Flu"},"No Flu","No Flu","No Flu","No Flu","Flu","No Flu","No Flu","No Flu","No Flu","No Flu","No Flu","No Flu","No Flu","No Flu","No Flu","No Flu","No Flu","No Flu","No Flu","Flu","No Flu","No Flu","No Flu","No Flu","No Flu","No Flu","No Flu","No Flu","No Flu","No Flu","No Flu","No Flu","No Flu","No Flu","No Flu","No Flu","No Flu","No Flu","No Flu","No Flu","Flu","No Flu","Flu","No Flu","Flu","No Flu","No Flu","Flu","No Flu","No Flu","No Flu","No Flu","No Flu","No Flu","No Flu","No Flu","No Flu","No Flu","No Flu","No Flu","No Flu","No Flu","No Flu",{"$f":"IF(RANDBETWEEN(1,100)<=12,\"Flu\",\"No Flu\")","v":"No Flu"},"No Flu","No Flu","No Flu","Flu","No Flu","No Flu","No Flu","Flu","No Flu","No Flu","No Flu","No Flu","No Flu","No Flu","No Flu","No Flu","No Flu","No Flu","No Flu","No Flu","No Flu","No Flu","No Flu","No Flu","No Flu","Flu","No Flu","Flu","Flu","No Flu","No Flu","No Flu","No Flu","No Flu","No Flu","No Flu","No Flu","Flu","No Flu","No Flu","No Flu","No Flu","No Flu","No Flu","No Flu","No Flu","No Flu","No Flu","No Flu","No Flu","No Flu","No Flu","Flu","No Flu","Flu","No Flu","No Flu","No Flu","Flu","No Flu","No Flu","No Flu","Flu",{"$f":"IF(RANDBETWEEN(1,100)<=12,\"Flu\",\"No Flu\")","v":"No Flu"},"No Flu","No Flu","No Flu","Flu","No Flu","No Flu","No Flu","No Flu","No Flu","No Flu","No Flu","No Flu","No Flu","No Flu","No Flu","No Flu","No Flu","No Flu","Flu","No Flu","No Flu","No Flu","No Flu","No Flu","No Flu","No Flu","No Flu","No Flu","No Flu","No Flu","No Flu","No Flu","No Flu","No Flu","No Flu","No Flu","No Flu","No Flu","No Flu","No Flu","No Flu","No Flu","No Flu","No Flu","No Flu","No Flu","No Flu","No Flu","No Flu","No Flu","Flu","No Flu","No Flu","Flu","No Flu","No Flu","Flu","No Flu","No Flu","No Flu","No Flu","No Flu","No Flu",{"$f":"IF(RANDBETWEEN(1,100)<=12,\"Flu\",\"No Flu\")","v":"No Flu"},"Flu","No Flu","No Flu","Flu","No Flu","No Flu","No Flu","No Flu","No Flu","No Flu","No Flu","Flu","No Flu","Flu","No Flu","No Flu","No Flu","No Flu","No Flu","No Flu","No Flu","No Flu","No Flu","No Flu","No Flu","No Flu","No Flu","No Flu","No Flu","No Flu","No Flu","No Flu","No Flu","No Flu","No Flu","No Flu","No Flu","No Flu","Flu","No Flu","No Flu","No Flu","No Flu","No Flu","No Flu","No Flu","No Flu","No Flu","No Flu","No Flu","No Flu","No Flu","Flu","No Flu","No Flu","No Flu","Flu","Flu","No Flu","No Flu","No Flu","Flu","No Flu",{"$f":"IF(RANDBETWEEN(1,100)<=12,\"Flu\",\"No Flu\")","v":"No Flu"},"No Flu","No Flu","No Flu","Flu","Flu","Flu","No Flu","No Flu","No Flu","Flu","No Flu","No Flu","No Flu","No Flu","Flu","No Flu","No Flu","No Flu","No Flu","No Flu","Flu","No Flu","No Flu","No Flu","No Flu","No Flu","Flu","Flu","No Flu","Flu","No Flu","No Flu","No Flu","No Flu","Flu","No Flu","No Flu","No Flu","No Flu","No Flu","No Flu","No Flu","No Flu","No Flu","No Flu","No Flu","Flu","No Flu","No Flu","No Flu","No Flu","No Flu","No Flu","No Flu","No Flu","No Flu","Flu","No Flu","Flu","No Flu","No Flu","No Flu","No Flu",{"$f":"IF(RANDBETWEEN(1,100)<=12,\"Flu\",\"No Flu\")","v":"No Flu"},"No Flu","No Flu","No Flu","No Flu","No Flu","No Flu","No Flu","No Flu","No Flu","Flu","No Flu","No Flu","No Flu","No Flu","No Flu","No Flu","No Flu","No Flu","No Flu","No Flu","No Flu","No Flu","No Flu","No Flu","No Flu","No Flu","No Flu","No Flu","Flu","No Flu","No Flu","No Flu","No Flu","No Flu","No Flu","No Flu","No Flu","No Flu","Flu","No Flu","No Flu","No Flu","No Flu","No Flu","No Flu","No Flu","No Flu","No Flu","No Flu","No Flu","No Flu","No Flu","Flu","No Flu","No Flu","No Flu","No Flu","No Flu","No Flu","No Flu","No Flu","No Flu","No Flu",{"$f":"IF(RANDBETWEEN(1,100)<=12,\"Flu\",\"No Flu\")","v":"No Flu"},"No Flu","No Flu","No Flu","No Flu","Flu","Flu","No Flu","No Flu","No Flu","No Flu","No Flu","No Flu","No Flu","No Flu","No Flu","No Flu","Flu","No Flu","No Flu","No Flu","No Flu","No Flu","No Flu","No Flu","No Flu","No Flu","No Flu","No Flu","No Flu","No Flu","No Flu","No Flu","No Flu","Flu","No Flu","No Flu","No Flu","No Flu","Flu","No Flu","No Flu","No Flu","No Flu","No Flu","No Flu","Flu","No Flu","No Flu","No Flu","No Flu","No Flu","Flu","No Flu","No Flu","No Flu","No Flu","No Flu","No Flu","No Flu","Flu","No Flu","No Flu","No Flu",{"$f":"IF(RANDBETWEEN(1,100)<=12,\"Flu\",\"No Flu\")","v":"Flu"},"No Flu","No Flu","No Flu","Flu","No Flu","No Flu","Flu","Flu","No Flu","No Flu","No Flu","No Flu","No Flu","No Flu","No Flu","No Flu","No Flu","No Flu","No Flu","No Flu","No Flu","No Flu","No Flu","No Flu","No Flu","No Flu","No Flu","No Flu","No Flu","No Flu","No Flu","No Flu","No Flu","Flu","No Flu","No Flu","Flu","No Flu","No Flu","No Flu","No Flu","No Flu","Flu","No Flu","No Flu","No Flu","No Flu","No Flu","No Flu","Flu","No Flu","No Flu","No Flu","No Flu","No Flu","No Flu","No Flu","No Flu","No Flu","No Flu","No Flu","No Flu","Flu",{"$f":"IF(RANDBETWEEN(1,100)<=12,\"Flu\",\"No Flu\")","v":"No Flu"},"No Flu","Flu","No Flu","No Flu","No Flu","Flu","No Flu","No Flu","No Flu","No Flu","No Flu","No Flu","No Flu","No Flu","No Flu","No Flu","No Flu","No Flu","No Flu","Flu","No Flu","No Flu","No Flu","No Flu","No Flu","No Flu","No Flu","No Flu","No Flu","Flu","No Flu","No Flu","No Flu","Flu","Flu","No Flu","No Flu","Flu","No Flu","No Flu","No Flu","No Flu","No Flu","No Flu","No Flu","No Flu","No Flu","Flu","No Flu","No Flu","No Flu","No Flu","No Flu","No Flu","No Flu","No Flu","No Flu","No Flu","No Flu","No Flu","No Flu","No Flu","No Flu",{"$f":"IF(RANDBETWEEN(1,100)<=12,\"Flu\",\"No Flu\")","v":"No Flu"},"No Flu","No Flu","No Flu","No Flu","No Flu","No Flu","No Flu","Flu","No Flu","Flu","No Flu","No Flu","Flu","No Flu","No Flu","No Flu","No Flu","No Flu","No Flu","No Flu","No Flu","No Flu","No Flu","No Flu","No Flu","No Flu","No Flu","No Flu","No Flu","No Flu","No Flu","No Flu","No Flu","No Flu","No Flu","No Flu","No Flu","No Flu","No Flu","No Flu","No Flu","No Flu","No Flu","Flu","Flu","No Flu","No Flu","No Flu","No Flu","No Flu","No Flu","Flu","No Flu","No Flu","No Flu","No Flu","Flu","No Flu","Flu","No Flu","Flu","No Flu","No Flu",{"$f":"IF(RANDBETWEEN(1,100)<=12,\"Flu\",\"No Flu\")","v":"No Flu"},"No Flu","Flu","Flu","No Flu","No Flu","No Flu","No Flu","No Flu","No Flu","No Flu","No Flu","Flu","No Flu","No Flu","No Flu","No Flu","Flu","Flu","No Flu","No Flu","No Flu","No Flu","No Flu","No Flu","No Flu","No Flu","No Flu","No Flu","Flu","No Flu","No Flu","No Flu","No Flu","No Flu","No Flu","No Flu","Flu","No Flu","No Flu","No Flu","No Flu","No Flu","Flu","No Flu","Flu","No Flu","No Flu","No Flu","No Flu","No Flu","No Flu","No Flu","No Flu","No Flu","No Flu","No Flu","No Flu","No Flu","No Flu","No Flu","No Flu","No Flu","No Flu",{"$f":"IF(RANDBETWEEN(1,100)<=12,\"Flu\",\"No Flu\")","v":"No Flu"},"No Flu","No Flu","No Flu","No Flu","Flu","No Flu","Flu","No Flu","No Flu","No Flu","No Flu","No Flu","No Flu","No Flu","No Flu","No Flu","No Flu","No Flu","No Flu","No Flu","No Flu","No Flu","No Flu","No Flu","Flu","No Flu","No Flu","Flu","No Flu","No Flu","No Flu","No Flu","No Flu","No Flu","No Flu","No Flu","No Flu","No Flu","No Flu","Flu","Flu","No Flu","No Flu","No Flu","No Flu","No Flu","No Flu","No Flu","No Flu","No Flu","No Flu","No Flu","Flu","No Flu","No Flu","No Flu","Flu","No Flu","No Flu","No Flu","Flu","No Flu","Flu",{"$f":"IF(RANDBETWEEN(1,100)<=12,\"Flu\",\"No Flu\")","v":"No Flu"},"Flu","No Flu","No Flu","No Flu","No Flu","Flu","No Flu","No Flu","No Flu","No Flu","No Flu","No Flu","No Flu","No Flu","No Flu","No Flu","No Flu","No Flu","No Flu","No Flu","No Flu","Flu","No Flu","No Flu","No Flu","No Flu","No Flu","No Flu","No Flu","No Flu","No Flu","No Flu","No Flu","No Flu","Flu","No Flu","No Flu","Flu","No Flu","No Flu","No Flu","No Flu","No Flu","No Flu","No Flu","No Flu","No Flu","No Flu","No Flu","No Flu","No Flu","No Flu","No Flu","Flu","No Flu","No Flu","No Flu","No Flu","No Flu","No Flu","No Flu","No Flu","No Flu",{"$f":"IF(RANDBETWEEN(1,100)<=12,\"Flu\",\"No Flu\")","v":"No Flu"},"No Flu","Flu","Flu","No Flu","No Flu","No Flu","No Flu","No Flu","No Flu","No Flu","No Flu","No Flu","No Flu","No Flu","No Flu","No Flu","No Flu","No Flu","No Flu","No Flu","No Flu","No Flu","No Flu","No Flu","No Flu","Flu","Flu","No Flu","No Flu","No Flu","Flu","No Flu","Flu","No Flu","No Flu","No Flu","Flu","No Flu","No Flu","No Flu","No Flu","No Flu","Flu","No Flu","Flu","No Flu","No Flu","No Flu","No Flu","No Flu","No Flu","No Flu","No Flu","No Flu","Flu","No Flu","No Flu","No Flu","No Flu","No Flu","No Flu","Flu","No Flu",{"$f":"IF(RANDBETWEEN(1,100)<=12,\"Flu\",\"No Flu\")","v":"No Flu"},"Flu","No Flu","Flu","No Flu","No Flu","No Flu","No Flu","No Flu","No Flu","No Flu","No Flu","No Flu","No Flu","No Flu","No Flu","No Flu","No Flu","No Flu","No Flu","No Flu","No Flu","No Flu","Flu","No Flu","No Flu","No Flu","No Flu","No Flu","No Flu","No Flu","No Flu","No Flu","No Flu","No Flu","Flu","No Flu","No Flu","No Flu","No Flu","No Flu","No Flu","No Flu","No Flu","No Flu","No Flu","No Flu","No Flu","No Flu","No Flu","No Flu","No Flu","No Flu","No Flu","No Flu","No Flu","No Flu","No Flu","No Flu","No Flu","No Flu","No Flu","No Flu","Flu",{"$f":"IF(RANDBETWEEN(1,100)<=12,\"Flu\",\"No Flu\")","v":"No Flu"},"No Flu","No Flu","No Flu","No Flu","No Flu","No Flu","No Flu","No Flu","No Flu","No Flu","No Flu","No Flu","No Flu","No Flu","No Flu","No Flu","No Flu","Flu","Flu","No Flu","No Flu","No Flu","No Flu","No Flu","No Flu","No Flu","No Flu","No Flu","No Flu","No Flu","No Flu","No Flu","Flu","No Flu","Flu","No Flu","No Flu","No Flu"]
[]
[null,null,"# Flu?"]
[null,null,{"$f":"COUNTIF(C2:ALN2,\"Flu\")","v":126},null,"# Flu?","Current","Cumulative"]
[null,null,null,null,0,{"$f":"COUNTIF($C$5,E6)","v":0},{"$f":"IF(F6=1,G6+1,G6)","v":0},{"$f":"G6","v":0},null,"number of cases where 101 or fewer folks got the flu",null,null,null,null,null,null,null,{"$f":"SUM(G6:G107)","v":0}]
[null,null,null,null,1,0,{"$f":"IF(F7=1,G7+1,G7)","v":0},{"$f":"G7","v":0},null,"total number of trials (n)",null,null,null,null,null,null,null,{"$f":"G1007","v":2}]
[null,null,null,null,2,0,0,0,null,"P(lower flu rate, based on random chance alone)",null,null,null,null,null,null,null,{"$f":"R6/R7","v":0}]
[null,null,null,null,3,0,0,0]
[null,null,null,null,4,0,0,0]
[null,null,null,null,5,0,0,0]
[null,null,null,null,6,0,0,0]
[null,null,null,null,7,0,0,0]
[null,null,null,null,8,0,0,0]
[null,null,null,null,9,0,0,0]
[null,null,null,null,10,0,0,0]
[null,null,null,null,11,0,0,0]
[null,null,null,null,12,0,0,0]
[null,null,null,null,13,0,0,0]
[null,null,null,null,14,0,0,0]
[null,null,null,null,15,0,0,0]
[null,null,null,null,16,0,0,0]
[null,null,null,null,17,0,0,0]
[null,null,null,null,18,0,0,0]
[null,null,null,null,19,0,0,0]
[null,null,null,null,20,0,0,0]
[null,null,null,null,21,0,0,0]
[null,null,null,null,22,0,0,0]
[null,null,null,null,23,0,0,0]
[null,null,null,null,24,0,0,0]
[null,null,null,null,25,0,0,0]
[null,null,null,null,26,0,0,0]
[null,null,null,null,27,0,0,0]
[null,null,null,null,28,0,0,0]
[null,null,null,null,29,0,0,0]
[null,null,null,null,30,0,0,0]
[null,null,null,null,31,0,0,0]
[null,null,null,null,32,0,0,0]
[null,null,null,null,33,0,0,0]
[null,null,null,null,34,0,0,0]
[null,null,null,null,35,0,0,0]
[null,null,null,null,36,0,0,0]
[null,null,null,null,37,0,0,0]
[null,null,null,null,38,0,0,0]
[null,null,null,null,39,0,0,0]
[null,null,null,null,40,0,0,0]
[null,null,null,null,41,0,0,0]
[null,null,null,null,42,0,0,0]
[null,null,null,null,43,0,0,0]
[null,null,null,null,44,0,0,0]
[null,null,null,null,45,0,0,0]
[null,null,null,null,46,0,0,0]
[null,null,null,null,47,0,0,0]
[null,null,null,null,48,0,0,0]
[null,null,null,null,49,0,0,0]
[null,null,null,null,50,0,0,0]
[null,null,null,null,51,0,0,0]
[null,null,null,null,52,0,0,0]
[null,null,null,null,53,0,0,0]
[null,null,null,null,54,0,0,0]
[null,null,null,null,55,0,0,0]
[null,null,null,null,56,0,0,0]
[null,null,null,null,57,0,0,0]
[null,null,null,null,58,0,0,0]
[null,null,null,null,59,0,0,0]
[null,null,null,null,60,0,0,0]
[null,null,null,null,61,0,0,0]
[null,null,null,null,62,0,0,0]
[null,null,null,null,63,0,0,0]
[null,null,null,null,64,{"$f":"COUNTIF($C$5,E70)","v":0},0,0]
[null,null,null,null,65,0,{"$f":"IF(F71=1,G71+1,G71)","v":0},{"$f":"G71","v":0}]
[null,null,null,null,66,0,0,0]
[null,null,null,null,67,0,0,0]
[null,null,null,null,68,0,0,0]
[null,null,null,null,69,0,0,0]
[null,null,null,null,70,0,0,0]
[null,null,null,null,71,0,0,0]
[null,null,null,null,72,0,0,0]
[null,null,null,null,73,0,0,0]
[null,null,null,null,74,0,0,0]
[null,null,null,null,75,0,0,0]
[null,null,null,null,76,0,0,0]
[null,null,null,null,77,0,0,0]
[null,null,null,null,78,0,0,0]
[null,null,null,null,79,0,0,0]
[null,null,null,null,80,0,0,0]
[null,null,null,null,81,0,0,0]
[null,null,null,null,82,0,0,0]
[null,null,null,null,83,0,0,0]
[null,null,null,null,84,0,0,0]
[null,null,null,null,85,0,0,0]
[null,null,null,null,86,0,0,0]
[null,null,null,null,87,0,0,0]
[null,null,null,null,88,0,0,0]
[null,null,null,null,89,0,0,0]
[null,null,null,null,90,0,0,0]
[null,null,null,null,91,0,0,0]
[null,null,null,null,92,0,0,0]
[null,null,null,null,93,0,0,0]
[null,null,null,null,94,0,0,0]
[null,null,null,null,95,0,0,0]
[null,null,null,null,96,0,0,0]
[null,null,null,null,97,0,0,0]
[null,null,null,null,98,0,0,0]
[null,null,null,null,99,0,0,0]
[null,null,null,null,100,0,0,0]
[null,null,null,null,101,0,0,0]
[null,null,null,null,102,0,0]
[null,null,null,null,103,0,0]
[null,null,null,null,104,0,0]
[null,null,null,null,105,0,0]
[null,null,null,null,106,0,0]
[null,null,null,null,107,0,0]
[null,null,null,null,108,0,0]
[null,null,null,null,109,0,0]
[null,null,null,null,110,0,0]
[null,null,null,null,111,0,0]
[null,null,null,null,112,0,0]
[null,null,null,null,113,0,0]
[null,null,null,null,114,0,1]
[null,null,null,null,115,0,0]
[null,null,null,null,116,0,0]
[null,null,null,null,117,0,0]
[null,null,null,null,118,0,0]
[null,null,null,null,119,0,0]
[null,null,null,null,120,0,0]
[null,null,null,null,121,0,0]
[null,null,null,null,122,0,0]
[null,null,null,null,123,0,0]
[null,null,null,null,124,0,0]
[null,null,null,null,125,0,0]
[null,null,null,null,126,1,1]
[null,null,null,null,127,0,1]
[null,null,null,null,128,{"$f":"COUNTIF($C$5,E134)","v":0},0]
[null,null,null,null,129,0,{"$f":"IF(F135=1,G135+1,G135)","v":0}]
[null,null,null,null,130,0,0]
[null,null,null,null,131,0,0]
[null,null,null,null,132,0,0]
[null,null,null,null,133,0,0]
[null,null,null,null,134,0,0]
[null,null,null,null,135,0,0]
[null,null,null,null,136,0,0]
[null,null,null,null,137,0,0]
[null,null,null,null,138,0,0]
[null,null,null,null,139,0,0]
[null,null,null,null,140,0,0]
[null,null,null,null,141,0,0]
[null,null,null,null,142,0,0]
[null,null,null,null,143,0,0]
[null,null,null,null,144,0,0]
[null,null,null,null,145,0,0]
[null,null,null,null,146,0,0]
[null,null,null,null,147,0,0]
[null,null,null,null,148,0,0]
[null,null,null,null,149,0,0]
[null,null,null,null,150,0,0]
[null,null,null,null,151,0,0]
[null,null,null,null,152,0,0]
[null,null,null,null,153,0,0]
[null,null,null,null,154,0,0]
[null,null,null,null,155,0,0]
[null,null,null,null,156,0,0]
[null,null,null,null,157,0,0]
[null,null,null,null,158,0,0]
[null,null,null,null,159,0,0]
[null,null,null,null,160,0,0]
[null,null,null,null,161,0,0]
[null,null,null,null,162,0,0]
[null,null,null,null,163,0,0]
[null,null,null,null,164,0,0]
[null,null,null,null,165,0,0]
[null,null,null,null,166,0,0]
[null,null,null,null,167,0,0]
[null,null,null,null,168,0,0]
[null,null,null,null,169,0,0]
[null,null,null,null,170,0,0]
[null,null,null,null,171,0,0]
[null,null,null,null,172,0,0]
[null,null,null,null,173,0,0]
[null,null,null,null,174,0,0]
[null,null,null,null,175,0,0]
[null,null,null,null,176,0,0]
[null,null,null,null,177,0,0]
[null,null,null,null,178,0,0]
[null,null,null,null,179,0,0]
[null,null,null,null,180,0,0]
[null,null,null,null,181,0,0]
[null,null,null,null,182,0,0]
[null,null,null,null,183,0,0]
[null,null,null,null,184,0,0]
[null,null,null,null,185,0,0]
[null,null,null,null,186,0,0]
[null,null,null,null,187,0,0]
[null,null,null,null,188,0,0]
[null,null,null,null,189,0,0]
[null,null,null,null,190,0,0]
[null,null,null,null,191,0,0]
[null,null,null,null,192,{"$f":"COUNTIF($C$5,E198)","v":0},0]
[null,null,null,null,193,0,{"$f":"IF(F199=1,G199+1,G199)","v":0}]
[null,null,null,null,194,0,0]
[null,null,null,null,195,0,0]
[null,null,null,null,196,0,0]
[null,null,null,null,197,0,0]
[null,null,null,null,198,0,0]
[null,null,null,null,199,0,0]
[null,null,null,null,200,0,0]
[null,null,null,null,201,0,0]
[null,null,null,null,202,0,0]
[null,null,null,null,203,0,0]
[null,null,null,null,204,0,0]
[null,null,null,null,205,0,0]
[null,null,null,null,206,0,0]
[null,null,null,null,207,0,0]
[null,null,null,null,208,0,0]
[null,null,null,null,209,0,0]
[null,null,null,null,210,0,0]
[null,null,null,null,211,0,0]
[null,null,null,null,212,0,0]
[null,null,null,null,213,0,0]
[null,null,null,null,214,0,0]
[null,null,null,null,215,0,0]
[null,null,null,null,216,0,0]
[null,null,null,null,217,0,0]
[null,null,null,null,218,0,0]
[null,null,null,null,219,0,0]
[null,null,null,null,220,0,0]
[null,null,null,null,221,0,0]
[null,null,null,null,222,0,0]
[null,null,null,null,223,0,0]
[null,null,null,null,224,0,0]
[null,null,null,null,225,0,0]
[null,null,null,null,226,0,0]
[null,null,null,null,227,0,0]
[null,null,null,null,228,0,0]
[null,null,null,null,229,0,0]
[null,null,null,null,230,0,0]
[null,null,null,null,231,0,0]
[null,null,null,null,232,0,0]
[null,null,null,null,233,0,0]
[null,null,null,null,234,0,0]
[null,null,null,null,235,0,0]
[null,null,null,null,236,0,0]
[null,null,null,null,237,0,0]
[null,null,null,null,238,0,0]
[null,null,null,null,239,0,0]
[null,null,null,null,240,0,0]
[null,null,null,null,241,0,0]
[null,null,null,null,242,0,0]
[null,null,null,null,243,0,0]
[null,null,null,null,244,0,0]
[null,null,null,null,245,0,0]
[null,null,null,null,246,0,0]
[null,null,null,null,247,0,0]
[null,null,null,null,248,0,0]
[null,null,null,null,249,0,0]
[null,null,null,null,250,0,0]
[null,null,null,null,251,0,0]
[null,null,null,null,252,0,0]
[null,null,null,null,253,0,0]
[null,null,null,null,254,0,0]
[null,null,null,null,255,0,0]
[null,null,null,null,256,{"$f":"COUNTIF($C$5,E262)","v":0},0]
[null,null,null,null,257,0,{"$f":"IF(F263=1,G263+1,G263)","v":0}]
[null,null,null,null,258,0,0]
[null,null,null,null,259,0,0]
[null,null,null,null,260,0,0]
[null,null,null,null,261,0,0]
[null,null,null,null,262,0,0]
[null,null,null,null,263,0,0]
[null,null,null,null,264,0,0]
[null,null,null,null,265,0,0]
[null,null,null,null,266,0,0]
[null,null,null,null,267,0,0]
[null,null,null,null,268,0,0]
[null,null,null,null,269,0,0]
[null,null,null,null,270,0,0]
[null,null,null,null,271,0,0]
[null,null,null,null,272,0,0]
[null,null,null,null,273,0,0]
[null,null,null,null,274,0,0]
[null,null,null,null,275,0,0]
[null,null,null,null,276,0,0]
[null,null,null,null,277,0,0]
[null,null,null,null,278,0,0]
[null,null,null,null,279,0,0]
[null,null,null,null,280,0,0]
[null,null,null,null,281,0,0]
[null,null,null,null,282,0,0]
[null,null,null,null,283,0,0]
[null,null,null,null,284,0,0]
[null,null,null,null,285,0,0]
[null,null,null,null,286,0,0]
[null,null,null,null,287,0,0]
[null,null,null,null,288,0,0]
[null,null,null,null,289,0,0]
[null,null,null,null,290,0,0]
[null,null,null,null,291,0,0]
[null,null,null,null,292,0,0]
[null,null,null,null,293,0,0]
[null,null,null,null,294,0,0]
[null,null,null,null,295,0,0]
[null,null,null,null,296,0,0]
[null,null,null,null,297,0,0]
[null,null,null,null,298,0,0]
[null,null,null,null,299,0,0]
[null,null,null,null,300,0,0]
[null,null,null,null,301,0,0]
[null,null,null,null,302,0,0]
[null,null,null,null,303,0,0]
[null,null,null,null,304,0,0]
[null,null,null,null,305,0,0]
[null,null,null,null,306,0,0]
[null,null,null,null,307,0,0]
[null,null,null,null,308,0,0]
[null,null,null,null,309,0,0]
[null,null,null,null,310,0,0]
[null,null,null,null,311,0,0]
[null,null,null,null,312,0,0]
[null,null,null,null,313,0,0]
[null,null,null,null,314,0,0]
[null,null,null,null,315,0,0]
[null,null,null,null,316,0,0]
[null,null,null,null,317,0,0]
[null,null,null,null,318,0,0]
[null,null,null,null,319,0,0]
[null,null,null,null,320,{"$f":"COUNTIF($C$5,E326)","v":0},0]
[null,null,null,null,321,0,{"$f":"IF(F327=1,G327+1,G327)","v":0}]
[null,null,null,null,322,0,0]
[null,null,null,null,323,0,0]
[null,null,null,null,324,0,0]
[null,null,null,null,325,0,0]
[null,null,null,null,326,0,0]
[null,null,null,null,327,0,0]
[null,null,null,null,328,0,0]
[null,null,null,null,329,0,0]
[null,null,null,null,330,0,0]
[null,null,null,null,331,0,0]
[null,null,null,null,332,0,0]
[null,null,null,null,333,0,0]
[null,null,null,null,334,0,0]
[null,null,null,null,335,0,0]
[null,null,null,null,336,0,0]
[null,null,null,null,337,0,0]
[null,null,null,null,338,0,0]
[null,null,null,null,339,0,0]
[null,null,null,null,340,0,0]
[null,null,null,null,341,0,0]
[null,null,null,null,342,0,0]
[null,null,null,null,343,0,0]
[null,null,null,null,344,0,0]
[null,null,null,null,345,0,0]
[null,null,null,null,346,0,0]
[null,null,null,null,347,0,0]
[null,null,null,null,348,0,0]
[null,null,null,null,349,0,0]
[null,null,null,null,350,0,0]
[null,null,null,null,351,0,0]
[null,null,null,null,352,0,0]
[null,null,null,null,353,0,0]
[null,null,null,null,354,0,0]
[null,null,null,null,355,0,0]
[null,null,null,null,356,0,0]
[null,null,null,null,357,0,0]
[null,null,null,null,358,0,0]
[null,null,null,null,359,0,0]
[null,null,null,null,360,0,0]
[null,null,null,null,361,0,0]
[null,null,null,null,362,0,0]
[null,null,null,null,363,0,0]
[null,null,null,null,364,0,0]
[null,null,null,null,365,0,0]
[null,null,null,null,366,0,0]
[null,null,null,null,367,0,0]
[null,null,null,null,368,0,0]
[null,null,null,null,369,0,0]
[null,null,null,null,370,0,0]
[null,null,null,null,371,0,0]
[null,null,null,null,372,0,0]
[null,null,null,null,373,0,0]
[null,null,null,null,374,0,0]
[null,null,null,null,375,0,0]
[null,null,null,null,376,0,0]
[null,null,null,null,377,0,0]
[null,null,null,null,378,0,0]
[null,null,null,null,379,0,0]
[null,null,null,null,380,0,0]
[null,null,null,null,381,0,0]
[null,null,null,null,382,0,0]
[null,null,null,null,383,0,0]
[null,null,null,null,384,{"$f":"COUNTIF($C$5,E390)","v":0},0]
[null,null,null,null,385,0,{"$f":"IF(F391=1,G391+1,G391)","v":0}]
[null,null,null,null,386,0,0]
[null,null,null,null,387,0,0]
[null,null,null,null,388,0,0]
[null,null,null,null,389,0,0]
[null,null,null,null,390,0,0]
[null,null,null,null,391,0,0]
[null,null,null,null,392,0,0]
[null,null,null,null,393,0,0]
[null,null,null,null,394,0,0]
[null,null,null,null,395,0,0]
[null,null,null,null,396,0,0]
[null,null,null,null,397,0,0]
[null,null,null,null,398,0,0]
[null,null,null,null,399,0,0]
[null,null,null,null,400,0,0]
[null,null,null,null,401,0,0]
[null,null,null,null,402,0,0]
[null,null,null,null,403,0,0]
[null,null,null,null,404,0,0]
[null,null,null,null,405,0,0]
[null,null,null,null,406,0,0]
[null,null,null,null,407,0,0]
[null,null,null,null,408,0,0]
[null,null,null,null,409,0,0]
[null,null,null,null,410,0,0]
[null,null,null,null,411,0,0]
[null,null,null,null,412,0,0]
[null,null,null,null,413,0,0]
[null,null,null,null,414,0,0]
[null,null,null,null,415,0,0]
[null,null,null,null,416,0,0]
[null,null,null,null,417,0,0]
[null,null,null,null,418,0,0]
[null,null,null,null,419,0,0]
[null,null,null,null,420,0,0]
[null,null,null,null,421,0,0]
[null,null,null,null,422,0,0]
[null,null,null,null,423,0,0]
[null,null,null,null,424,0,0]
[null,null,null,null,425,0,0]
[null,null,null,null,426,0,0]
[null,null,null,null,427,0,0]
[null,null,null,null,428,0,0]
[null,null,null,null,429,0,0]
[null,null,null,null,430,0,0]
[null,null,null,null,431,0,0]
[null,null,null,null,432,0,0]
[null,null,null,null,433,0,0]
[null,null,null,null,434,0,0]
[null,null,null,null,435,0,0]
[null,null,null,null,436,0,0]
[null,null,null,null,437,0,0]
[null,null,null,null,438,0,0]
[null,null,null,null,439,0,0]
[null,null,null,null,440,0,0]
[null,null,null,null,441,0,0]
[null,null,null,null,442,0,0]
[null,null,null,null,443,0,0]
[null,null,null,null,444,0,0]
[null,null,null,null,445,0,0]
[null,null,null,null,446,0,0]
[null,null,null,null,447,0,0]
[null,null,null,null,448,{"$f":"COUNTIF($C$5,E454)","v":0},0]
[null,null,null,null,449,0,{"$f":"IF(F455=1,G455+1,G455)","v":0}]
[null,null,null,null,450,0,0]
[null,null,null,null,451,0,0]
[null,null,null,null,452,0,0]
[null,null,null,null,453,0,0]
[null,null,null,null,454,0,0]
[null,null,null,null,455,0,0]
[null,null,null,null,456,0,0]
[null,null,null,null,457,0,0]
[null,null,null,null,458,0,0]
[null,null,null,null,459,0,0]
[null,null,null,null,460,0,0]
[null,null,null,null,461,0,0]
[null,null,null,null,462,0,0]
[null,null,null,null,463,0,0]
[null,null,null,null,464,0,0]
[null,null,null,null,465,0,0]
[null,null,null,null,466,0,0]
[null,null,null,null,467,0,0]
[null,null,null,null,468,0,0]
[null,null,null,null,469,0,0]
[null,null,null,null,470,0,0]
[null,null,null,null,471,0,0]
[null,null,null,null,472,0,0]
[null,null,null,null,473,0,0]
[null,null,null,null,474,0,0]
[null,null,null,null,475,0,0]
[null,null,null,null,476,0,0]
[null,null,null,null,477,0,0]
[null,null,null,null,478,0,0]
[null,null,null,null,479,0,0]
[null,null,null,null,480,0,0]
[null,null,null,null,481,0,0]
[null,null,null,null,482,0,0]
[null,null,null,null,483,0,0]
[null,null,null,null,484,0,0]
[null,null,null,null,485,0,0]
[null,null,null,null,486,0,0]
[null,null,null,null,487,0,0]
[null,null,null,null,488,0,0]
[null,null,null,null,489,0,0]
[null,null,null,null,490,0,0]
[null,null,null,null,491,0,0]
[null,null,null,null,492,0,0]
[null,null,null,null,493,0,0]
[null,null,null,null,494,0,0]
[null,null,null,null,495,0,0]
[null,null,null,null,496,0,0]
[null,null,null,null,497,0,0]
[null,null,null,null,498,0,0]
[null,null,null,null,499,0,0]
[null,null,null,null,500,0,0]
[null,null,null,null,501,0,0]
[null,null,null,null,502,0,0]
[null,null,null,null,503,0,0]
[null,null,null,null,504,0,0]
[null,null,null,null,505,0,0]
[null,null,null,null,506,0,0]
[null,null,null,null,507,0,0]
[null,null,null,null,508,0,0]
[null,null,null,null,509,0,0]
[null,null,null,null,510,0,0]
[null,null,null,null,511,0,0]
[null,null,null,null,512,{"$f":"COUNTIF($C$5,E518)","v":0},0]
[null,null,null,null,513,0,{"$f":"IF(F519=1,G519+1,G519)","v":0}]
[null,null,null,null,514,0,0]
[null,null,null,null,515,0,0]
[null,null,null,null,516,0,0]
[null,null,null,null,517,0,0]
[null,null,null,null,518,0,0]
[null,null,null,null,519,0,0]
[null,null,null,null,520,0,0]
[null,null,null,null,521,0,0]
[null,null,null,null,522,0,0]
[null,null,null,null,523,0,0]
[null,null,null,null,524,0,0]
[null,null,null,null,525,0,0]
[null,null,null,null,526,0,0]
[null,null,null,null,527,0,0]
[null,null,null,null,528,0,0]
[null,null,null,null,529,0,0]
[null,null,null,null,530,0,0]
[null,null,null,null,531,0,0]
[null,null,null,null,532,0,0]
[null,null,null,null,533,0,0]
[null,null,null,null,534,0,0]
[null,null,null,null,535,0,0]
[null,null,null,null,536,0,0]
[null,null,null,null,537,0,0]
[null,null,null,null,538,0,0]
[null,null,null,null,539,0,0]
[null,null,null,null,540,0,0]
[null,null,null,null,541,0,0]
[null,null,null,null,542,0,0]
[null,null,null,null,543,0,0]
[null,null,null,null,544,0,0]
[null,null,null,null,545,0,0]
[null,null,null,null,546,0,0]
[null,null,null,null,547,0,0]
[null,null,null,null,548,0,0]
[null,null,null,null,549,0,0]
[null,null,null,null,550,0,0]
[null,null,null,null,551,0,0]
[null,null,null,null,552,0,0]
[null,null,null,null,553,0,0]
[null,null,null,null,554,0,0]
[null,null,null,null,555,0,0]
[null,null,null,null,556,0,0]
[null,null,null,null,557,0,0]
[null,null,null,null,558,0,0]
[null,null,null,null,559,0,0]
[null,null,null,null,560,0,0]
[null,null,null,null,561,0,0]
[null,null,null,null,562,0,0]
[null,null,null,null,563,0,0]
[null,null,null,null,564,0,0]
[null,null,null,null,565,0,0]
[null,null,null,null,566,0,0]
[null,null,null,null,567,0,0]
[null,null,null,null,568,0,0]
[null,null,null,null,569,0,0]
[null,null,null,null,570,0,0]
[null,null,null,null,571,0,0]
[null,null,null,null,572,0,0]
[null,null,null,null,573,0,0]
[null,null,null,null,574,0,0]
[null,null,null,null,575,0,0]
[null,null,null,null,576,{"$f":"COUNTIF($C$5,E582)","v":0},0]
[null,null,null,null,577,0,{"$f":"IF(F583=1,G583+1,G583)","v":0}]
[null,null,null,null,578,0,0]
[null,null,null,null,579,0,0]
[null,null,null,null,580,0,0]
[null,null,null,null,581,0,0]
[null,null,null,null,582,0,0]
[null,null,null,null,583,0,0]
[null,null,null,null,584,0,0]
[null,null,null,null,585,0,0]
[null,null,null,null,586,0,0]
[null,null,null,null,587,0,0]
[null,null,null,null,588,0,0]
[null,null,null,null,589,0,0]
[null,null,null,null,590,0,0]
[null,null,null,null,591,0,0]
[null,null,null,null,592,0,0]
[null,null,null,null,593,0,0]
[null,null,null,null,594,0,0]
[null,null,null,null,595,0,0]
[null,null,null,null,596,0,0]
[null,null,null,null,597,0,0]
[null,null,null,null,598,0,0]
[null,null,null,null,599,0,0]
[null,null,null,null,600,0,0]
[null,null,null,null,601,0,0]
[null,null,null,null,602,0,0]
[null,null,null,null,603,0,0]
[null,null,null,null,604,0,0]
[null,null,null,null,605,0,0]
[null,null,null,null,606,0,0]
[null,null,null,null,607,0,0]
[null,null,null,null,608,0,0]
[null,null,null,null,609,0,0]
[null,null,null,null,610,0,0]
[null,null,null,null,611,0,0]
[null,null,null,null,612,0,0]
[null,null,null,null,613,0,0]
[null,null,null,null,614,0,0]
[null,null,null,null,615,0,0]
[null,null,null,null,616,0,0]
[null,null,null,null,617,0,0]
[null,null,null,null,618,0,0]
[null,null,null,null,619,0,0]
[null,null,null,null,620,0,0]
[null,null,null,null,621,0,0]
[null,null,null,null,622,0,0]
[null,null,null,null,623,0,0]
[null,null,null,null,624,0,0]
[null,null,null,null,625,0,0]
[null,null,null,null,626,0,0]
[null,null,null,null,627,0,0]
[null,null,null,null,628,0,0]
[null,null,null,null,629,0,0]
[null,null,null,null,630,0,0]
[null,null,null,null,631,0,0]
[null,null,null,null,632,0,0]
[null,null,null,null,633,0,0]
[null,null,null,null,634,0,0]
[null,null,null,null,635,0,0]
[null,null,null,null,636,0,0]
[null,null,null,null,637,0,0]
[null,null,null,null,638,0,0]
[null,null,null,null,639,0,0]
[null,null,null,null,640,{"$f":"COUNTIF($C$5,E646)","v":0},0]
[null,null,null,null,641,0,{"$f":"IF(F647=1,G647+1,G647)","v":0}]
[null,null,null,null,642,0,0]
[null,null,null,null,643,0,0]
[null,null,null,null,644,0,0]
[null,null,null,null,645,0,0]
[null,null,null,null,646,0,0]
[null,null,null,null,647,0,0]
[null,null,null,null,648,0,0]
[null,null,null,null,649,0,0]
[null,null,null,null,650,0,0]
[null,null,null,null,651,0,0]
[null,null,null,null,652,0,0]
[null,null,null,null,653,0,0]
[null,null,null,null,654,0,0]
[null,null,null,null,655,0,0]
[null,null,null,null,656,0,0]
[null,null,null,null,657,0,0]
[null,null,null,null,658,0,0]
[null,null,null,null,659,0,0]
[null,null,null,null,660,0,0]
[null,null,null,null,661,0,0]
[null,null,null,null,662,0,0]
[null,null,null,null,663,0,0]
[null,null,null,null,664,0,0]
[null,null,null,null,665,0,0]
[null,null,null,null,666,0,0]
[null,null,null,null,667,0,0]
[null,null,null,null,668,0,0]
[null,null,null,null,669,0,0]
[null,null,null,null,670,0,0]
[null,null,null,null,671,0,0]
[null,null,null,null,672,0,0]
[null,null,null,null,673,0,0]
[null,null,null,null,674,0,0]
[null,null,null,null,675,0,0]
[null,null,null,null,676,0,0]
[null,null,null,null,677,0,0]
[null,null,null,null,678,0,0]
[null,null,null,null,679,0,0]
[null,null,null,null,680,0,0]
[null,null,null,null,681,0,0]
[null,null,null,null,682,0,0]
[null,null,null,null,683,0,0]
[null,null,null,null,684,0,0]
[null,null,null,null,685,0,0]
[null,null,null,null,686,0,0]
[null,null,null,null,687,0,0]
[null,null,null,null,688,0,0]
[null,null,null,null,689,0,0]
[null,null,null,null,690,0,0]
[null,null,null,null,691,0,0]
[null,null,null,null,692,0,0]
[null,null,null,null,693,0,0]
[null,null,null,null,694,0,0]
[null,null,null,null,695,0,0]
[null,null,null,null,696,0,0]
[null,null,null,null,697,0,0]
[null,null,null,null,698,0,0]
[null,null,null,null,699,0,0]
[null,null,null,null,700,0,0]
[null,null,null,null,701,0,0]
[null,null,null,null,702,0,0]
[null,null,null,null,703,0,0]
[null,null,null,null,704,{"$f":"COUNTIF($C$5,E710)","v":0},0]
[null,null,null,null,705,0,{"$f":"IF(F711=1,G711+1,G711)","v":0}]
[null,null,null,null,706,0,0]
[null,null,null,null,707,0,0]
[null,null,null,null,708,0,0]
[null,null,null,null,709,0,0]
[null,null,null,null,710,0,0]
[null,null,null,null,711,0,0]
[null,null,null,null,712,0,0]
[null,null,null,null,713,0,0]
[null,null,null,null,714,0,0]
[null,null,null,null,715,0,0]
[null,null,null,null,716,0,0]
[null,null,null,null,717,0,0]
[null,null,null,null,718,0,0]
[null,null,null,null,719,0,0]
[null,null,null,null,720,0,0]
[null,null,null,null,721,0,0]
[null,null,null,null,722,0,0]
[null,null,null,null,723,0,0]
[null,null,null,null,724,0,0]
[null,null,null,null,725,0,0]
[null,null,null,null,726,0,0]
[null,null,null,null,727,0,0]
[null,null,null,null,728,0,0]
[null,null,null,null,729,0,0]
[null,null,null,null,730,0,0]
[null,null,null,null,731,0,0]
[null,null,null,null,732,0,0]
[null,null,null,null,733,0,0]
[null,null,null,null,734,0,0]
[null,null,null,null,735,0,0]
[null,null,null,null,736,0,0]
[null,null,null,null,737,0,0]
[null,null,null,null,738,0,0]
[null,null,null,null,739,0,0]
[null,null,null,null,740,0,0]
[null,null,null,null,741,0,0]
[null,null,null,null,742,0,0]
[null,null,null,null,743,0,0]
[null,null,null,null,744,0,0]
[null,null,null,null,745,0,0]
[null,null,null,null,746,0,0]
[null,null,null,null,747,0,0]
[null,null,null,null,748,0,0]
[null,null,null,null,749,0,0]
[null,null,null,null,750,0,0]
[null,null,null,null,751,0,0]
[null,null,null,null,752,0,0]
[null,null,null,null,753,0,0]
[null,null,null,null,754,0,0]
[null,null,null,null,755,0,0]
[null,null,null,null,756,0,0]
[null,null,null,null,757,0,0]
[null,null,null,null,758,0,0]
[null,null,null,null,759,0,0]
[null,null,null,null,760,0,0]
[null,null,null,null,761,0,0]
[null,null,null,null,762,0,0]
[null,null,null,null,763,0,0]
[null,null,null,null,764,0,0]
[null,null,null,null,765,0,0]
[null,null,null,null,766,0,0]
[null,null,null,null,767,0,0]
[null,null,null,null,768,{"$f":"COUNTIF($C$5,E774)","v":0},0]
[null,null,null,null,769,0,{"$f":"IF(F775=1,G775+1,G775)","v":0}]
[null,null,null,null,770,0,0]
[null,null,null,null,771,0,0]
[null,null,null,null,772,0,0]
[null,null,null,null,773,0,0]
[null,null,null,null,774,0,0]
[null,null,null,null,775,0,0]
[null,null,null,null,776,0,0]
[null,null,null,null,777,0,0]
[null,null,null,null,778,0,0]
[null,null,null,null,779,0,0]
[null,null,null,null,780,0,0]
[null,null,null,null,781,0,0]
[null,null,null,null,782,0,0]
[null,null,null,null,783,0,0]
[null,null,null,null,784,0,0]
[null,null,null,null,785,0,0]
[null,null,null,null,786,0,0]
[null,null,null,null,787,0,0]
[null,null,null,null,788,0,0]
[null,null,null,null,789,0,0]
[null,null,null,null,790,0,0]
[null,null,null,null,791,0,0]
[null,null,null,null,792,0,0]
[null,null,null,null,793,0,0]
[null,null,null,null,794,0,0]
[null,null,null,null,795,0,0]
[null,null,null,null,796,0,0]
[null,null,null,null,797,0,0]
[null,null,null,null,798,0,0]
[null,null,null,null,799,0,0]
[null,null,null,null,800,0,0]
[null,null,null,null,801,0,0]
[null,null,null,null,802,0,0]
[null,null,null,null,803,0,0]
[null,null,null,null,804,0,0]
[null,null,null,null,805,0,0]
[null,null,null,null,806,0,0]
[null,null,null,null,807,0,0]
[null,null,null,null,808,0,0]
[null,null,null,null,809,0,0]
[null,null,null,null,810,0,0]
[null,null,null,null,811,0,0]
[null,null,null,null,812,0,0]
[null,null,null,null,813,0,0]
[null,null,null,null,814,0,0]
[null,null,null,null,815,0,0]
[null,null,null,null,816,0,0]
[null,null,null,null,817,0,0]
[null,null,null,null,818,0,0]
[null,null,null,null,819,0,0]
[null,null,null,null,820,0,0]
[null,null,null,null,821,0,0]
[null,null,null,null,822,0,0]
[null,null,null,null,823,0,0]
[null,null,null,null,824,0,0]
[null,null,null,null,825,0,0]
[null,null,null,null,826,0,0]
[null,null,null,null,827,0,0]
[null,null,null,null,828,0,0]
[null,null,null,null,829,0,0]
[null,null,null,null,830,0,0]
[null,null,null,null,831,0,0]
[null,null,null,null,832,{"$f":"COUNTIF($C$5,E838)","v":0},0]
[null,null,null,null,833,0,{"$f":"IF(F839=1,G839+1,G839)","v":0}]
[null,null,null,null,834,0,0]
[null,null,null,null,835,0,0]
[null,null,null,null,836,0,0]
[null,null,null,null,837,0,0]
[null,null,null,null,838,0,0]
[null,null,null,null,839,0,0]
[null,null,null,null,840,0,0]
[null,null,null,null,841,0,0]
[null,null,null,null,842,0,0]
[null,null,null,null,843,0,0]
[null,null,null,null,844,0,0]
[null,null,null,null,845,0,0]
[null,null,null,null,846,0,0]
[null,null,null,null,847,0,0]
[null,null,null,null,848,0,0]
[null,null,null,null,849,0,0]
[null,null,null,null,850,0,0]
[null,null,null,null,851,0,0]
[null,null,null,null,852,0,0]
[null,null,null,null,853,0,0]
[null,null,null,null,854,0,0]
[null,null,null,null,855,0,0]
[null,null,null,null,856,0,0]
[null,null,null,null,857,0,0]
[null,null,null,null,858,0,0]
[null,null,null,null,859,0,0]
[null,null,null,null,860,0,0]
[null,null,null,null,861,0,0]
[null,null,null,null,862,0,0]
[null,null,null,null,863,0,0]
[null,null,null,null,864,0,0]
[null,null,null,null,865,0,0]
[null,null,null,null,866,0,0]
[null,null,null,null,867,0,0]
[null,null,null,null,868,0,0]
[null,null,null,null,869,0,0]
[null,null,null,null,870,0,0]
[null,null,null,null,871,0,0]
[null,null,null,null,872,0,0]
[null,null,null,null,873,0,0]
[null,null,null,null,874,0,0]
[null,null,null,null,875,0,0]
[null,null,null,null,876,0,0]
[null,null,null,null,877,0,0]
[null,null,null,null,878,0,0]
[null,null,null,null,879,0,0]
[null,null,null,null,880,0,0]
[null,null,null,null,881,0,0]
[null,null,null,null,882,0,0]
[null,null,null,null,883,0,0]
[null,null,null,null,884,0,0]
[null,null,null,null,885,0,0]
[null,null,null,null,886,0,0]
[null,null,null,null,887,0,0]
[null,null,null,null,888,0,0]
[null,null,null,null,889,0,0]
[null,null,null,null,890,0,0]
[null,null,null,null,891,0,0]
[null,null,null,null,892,0,0]
[null,null,null,null,893,0,0]
[null,null,null,null,894,0,0]
[null,null,null,null,895,0,0]
[null,null,null,null,896,{"$f":"COUNTIF($C$5,E902)","v":0},0]
[null,null,null,null,897,0,{"$f":"IF(F903=1,G903+1,G903)","v":0}]
[null,null,null,null,898,0,0]
[null,null,null,null,899,0,0]
[null,null,null,null,900,0,0]
[null,null,null,null,901,0,0]
[null,null,null,null,902,0,0]
[null,null,null,null,903,0,0]
[null,null,null,null,904,0,0]
[null,null,null,null,905,0,0]
[null,null,null,null,906,0,0]
[null,null,null,null,907,0,0]
[null,null,null,null,908,0,0]
[null,null,null,null,909,0,0]
[null,null,null,null,910,0,0]
[null,null,null,null,911,0,0]
[null,null,null,null,912,0,0]
[null,null,null,null,913,0,0]
[null,null,null,null,914,0,0]
[null,null,null,null,915,0,0]
[null,null,null,null,916,0,0]
[null,null,null,null,917,0,0]
[null,null,null,null,918,0,0]
[null,null,null,null,919,0,0]
[null,null,null,null,920,0,0]
[null,null,null,null,921,0,0]
[null,null,null,null,922,0,0]
[null,null,null,null,923,0,0]
[null,null,null,null,924,0,0]
[null,null,null,null,925,0,0]
[null,null,null,null,926,0,0]
[null,null,null,null,927,0,0]
[null,null,null,null,928,0,0]
[null,null,null,null,929,0,0]
[null,null,null,null,930,0,0]
[null,null,null,null,931,0,0]
[null,null,null,null,932,0,0]
[null,null,null,null,933,0,0]
[null,null,null,null,934,0,0]
[null,null,null,null,935,0,0]
[null,null,null,null,936,0,0]
[null,null,null,null,937,0,0]
[null,null,null,null,938,0,0]
[null,null,null,null,939,0,0]
[null,null,null,null,940,0,0]
[null,null,null,null,941,0,0]
[null,null,null,null,942,0,0]
[null,null,null,null,943,0,0]
[null,null,null,null,944,0,0]
[null,null,null,null,945,0,0]
[null,null,null,null,946,0,0]
[null,null,null,null,947,0,0]
[null,null,null,null,948,0,0]
[null,null,null,null,949,0,0]
[null,null,null,null,950,0,0]
[null,null,null,null,951,0,0]
[null,null,null,null,952,0,0]
[null,null,null,null,953,0,0]
[null,null,null,null,954,0,0]
[null,null,null,null,955,0,0]
[null,null,null,null,956,0,0]
[null,null,null,null,957,0,0]
[null,null,null,null,958,0,0]
[null,null,null,null,959,0,0]
[null,null,null,null,960,{"$f":"COUNTIF($C$5,E966)","v":0},0]
[null,null,null,null,961,0,{"$f":"IF(F967=1,G967+1,G967)","v":0}]
[null,null,null,null,962,0,0]
[null,null,null,null,963,0,0]
[null,null,null,null,964,0,0]
[null,null,null,null,965,0,0]
[null,null,null,null,966,0,0]
[null,null,null,null,967,0,0]
[null,null,null,null,968,0,0]
[null,null,null,null,969,0,0]
[null,null,null,null,970,0,0]
[null,null,null,null,971,0,0]
[null,null,null,null,972,0,0]
[null,null,null,null,973,0,0]
[null,null,null,null,974,0,0]
[null,null,null,null,975,0,0]
[null,null,null,null,976,0,0]
[null,null,null,null,977,0,0]
[null,null,null,null,978,0,0]
[null,null,null,null,979,0,0]
[null,null,null,null,980,0,0]
[null,null,null,null,981,0,0]
[null,null,null,null,982,0,0]
[null,null,null,null,983,0,0]
[null,null,null,null,984,0,0]
[null,null,null,null,985,0,0]
[null,null,null,null,986,0,0]
[null,null,null,null,987,0,0]
[null,null,null,null,988,0,0]
[null,null,null,null,989,0,0]
[null,null,null,null,990,0,0]
[null,null,null,null,991,0,0]
[null,null,null,null,992,0,0]
[null,null,null,null,993,0,0]
[null,null,null,null,994,0,0]
[null,null,null,null,995,0,0]
[null,null,null,null,996,0,0]
[null,null,null,null,997,0,0]
[null,null,null,null,998,0,0]
[null,null,null,null,999,0,0]
[null,null,null,null,1000,0,0]
[null,null,null,null,null,null,{"$f":"SUM(G6:G1006)","v":3}]